[Event "Vienna Championship-C 2022"]
[Site "Vienna"]
[Date "2022.09.20"]
[Round "4.13"]
[White "Niesswohl, Werner"]
[Black "Mair, Josef"]
[Result "0-1"]
[ECO "A40"]
[WhiteElo "1473"]
[BlackElo "1620"]
[Annotator "NA COMBH"]
[PlyCount "78"]
[EventDate "2022.09.17"]
[EventType "swiss"]
[EventCountry "AUT"]
[SourceTitle "playchess.com"]
[Source "ChessBase"]
[SourceQuality "1"]
[TimeControl "5400+30"]

1. d4 {[%emt 0:00:02]} e5 {[%emt 0:00:12]} 2. dxe5 {[%emt 0:00:54]} Nc6 {[%emt 0:00:14]} 3. Nf3 {[%emt 0:00:34]} Qe7 {[%emt 0:00:11]} 4. Bg5 {[%emt 0:01:25]} Qb4+ {[%emt 0:00:22]} 5. Nbd2 {[%emt 0:01:58]} Qxb2 {[%emt 0:00:46]} 6. Qb1 {[%emt 0:08:00]} Qc3 {[%emt 0:00:48]} 7. Qc1 {[%emt 0:02:13]} Nxe5 {[%emt 0:00:23]} 8. Nxe5 {[%emt 0:02:46]} Qxe5 {[%emt 0:00:17]} 9. Nc4 {[%emt 0:00:28]} Bb4+ {[%emt 0:01:16]} 10. Bd2 {[%emt 0:00:43]} Bxd2+ {[%emt 0:00:54]} 11. Nxd2 {[%emt 0:00:42]} Nf6 {[%emt 0:00:28]} 12. Rb1 {[%emt 0:05:52]} O-O {[%emt 0:03:38]} 13. Nf3 {[%emt 0:01:24]} Qa5+ {[%emt 0:00:45]} 14. c3 {[%emt 0:04:01]} Qxa2 {[%emt 0:00:30]} 15. Ra1 {[%emt 0:00:49]} Qe6 {[%emt 0:00:43]} 16. Nd4 {[%emt 0:00:35]} Qb6 {[%emt 0:03:14]} 17. e3 {[%emt 0:02:10]} c6 {[%emt 0:08:28]} 18. Be2 {[%emt 0:00:50]} d5 {[%emt 0:00:21]} 19. O-O {[%emt 0:00:34]} Re8 {[%emt 0:00:36]} 20. Rb1 {[%emt 0:00:23]} Qc7 {[%emt 0:00:21]} 21. h3 {[%emt 0:01:45]} h6 {[%emt 0:00:20]} 22. c4 {[%emt 0:00:51]} dxc4 {[%emt 0:00:22]} 23. Qxc4 {[%emt 0:00:39]} Be6 {[%emt 0:00:43]} 24. Qc2 {[%emt 0:03:11]} c5 {[%emt 0:07:58]} 25. Nxe6 {[%emt 0:00:34]} Rxe6 {[%emt 0:00:34]} 26. Bc4 {[%emt 0:00:32]} Re7 {[%emt 0:00:39]} 27. Rfd1 {[%emt 0:02:25]} a6 {[%emt 0:00:20]} 28. Ra1 {[%emt 0:02:26]} Ree8 {[%emt 0:00:42]} 29. Bd3 {[%emt 0:03:05]} b5 {[%emt 0:01:32]} 30. Bf5 {[%emt 0:00:24]} a5 {[%emt 0:01:55]} 31. Rd4 {[%emt 0:03:44]} Qe5 {[%emt 0:01:23]} 32. Rdd1 {[%emt 0:02:44]} c4 {[%emt 0:06:39]} 33. Rd4 {[%emt 0:02:43]} b4 {[%emt 0:02:53]} 34. Re1 {[%emt 0:02:56]} b3 {[%emt 0:00:54]} 35. f4 {[%emt 0:01:20]} Qb5 {[%emt 0:02:11]} 36. Qb1 {[%emt 0:01:52]} a4 {[%emt 0:02:34]} 37. Rc1 {[%emt 0:01:12]} a3 {[%emt 0:03:26]} 38. Rdxc4 {[%emt 0:04:32]} a2 {[%emt 0:03:48]} 39. Rc5 {[%emt 0:01:45]} axb1=Q {[%emt 0:00:53]} 0-1

[Event "Vienna Championship-C 2022"]
[Site "Vienna"]
[Date "2022.09.21"]
[Round "5.2"]
[White "Lappe, Manfred"]
[Black "Roehrbacher, Franz"]
[Result "1-0"]
[ECO "B20"]
[WhiteElo "1692"]
[BlackElo "1673"]
[Annotator "NA RC COMBH"]
[PlyCount "53"]
[EventDate "2022.09.17"]
[EventType "swiss"]
[EventCountry "AUT"]
[SourceTitle "playchess.com"]
[Source "ChessBase"]
[SourceQuality "1"]
[TimeControl "5400+30"]

1. e4 {[%emt 0:00:12]} c5 {[%emt 0:00:08]} 2. Bc4 {[%emt 0:00:37]} e6 {[%emt 0:00:06]} 3. Nc3 {[%emt 0:00:29]} d6 {[%emt 0:02:20]} 4. d3 {[%emt 0:00:32]} Be7 {[%emt 0:01:11]} 5. Nge2 {[%emt 0:04:08]} Nf6 {[%emt 0:00:48]} 6. O-O {[%emt 0:01:38]} O-O {[%emt 0:00:05]} 7. a4 {[%emt 0:04:32]} Nc6 {[%emt 0:03:29]} 8. Bf4 {[%emt 0:04:29]} d5 {[%emt 0:02:46]} 9. exd5 {[%emt 0:01:50]} exd5 {[%emt 0:01:43]} 10. Bb3 {[%emt 0:00:19]} a6 {[%emt 0:03:30]} 11. Bg5 {[%emt 0:02:27]} c4 {[%emt 0:07:36]} 12. dxc4 {[%emt 0:02:00]} d4 {[%emt 0:00:37]} 13. Bxf6 {[%emt 0:01:23]} dxc3 {[%emt 0:01:36]} 14. Bxc3 {[%emt 0:01:22]} Qc7 {[%emt 0:05:15]} 15. Ng3 {[%emt 0:01:59]} g6 {[%emt 0:07:31]} 16. Ne4 {[%emt 0:01:40]} Ne5 {[%emt 0:05:11]} 17. f4 {[%emt 0:17:44]} Bf5 {[%emt 0:05:50]} 18. Bxe5 {[%emt 0:01:23]} Qc6 {[%emt 0:02:29]} 19. Nc3 {[%emt 0:02:44]} Bc5+ {[%emt 0:03:06]} 20. Bd4 {[%emt 0:02:19]} Rfd8 {[%emt 0:00:47]} 21. Nd5 {[%emt 0:02:20]} Be4 {[%emt 0:11:14]} 22. c3 {[%emt 0:01:52]} b5 {[%emt 0:03:28]} 23. axb5 {[%emt 0:01:25]} axb5 {[%emt 0:00:20]} 24. Rxa8 {[%emt 0:00:14]} Rxa8 {[%emt 0:00:59]} 25. Bxc5 {[%emt 0:00:18]} Qxc5+ {[%emt 0:00:58]} 26. Qd4 {[%emt 0:00:07]} Qxd4+ {[%emt 0:01:15]} 27. cxd4 {[%emt 0:43:57]} 1-0

[Event "Vienna Championship-C 2022"]
[Site "Vienna"]
[Date "2022.09.21"]
[Round "5.3"]
[White "Geyer, Guenter"]
[Black "Gerold, Arnold"]
[Result "1/2-1/2"]
[ECO "A41"]
[WhiteElo "1855"]
[BlackElo "1708"]
[Annotator "NA COMBH"]
[PlyCount "29"]
[EventDate "2022.09.17"]
[EventType "swiss"]
[EventCountry "AUT"]
[SourceTitle "playchess.com"]
[Source "ChessBase"]
[SourceQuality "1"]
[TimeControl "5400+30"]

1. d4 {[%emt 1:31:00]} d6 {[%emt 1:31:00]} 2. Nf3 {[%emt 0:00:30]} c6 {[%emt 0:00:30]} 3. c3 {[%emt 0:00:30]} Bg4 {[%emt 0:00:30]} 4. e4 {[%emt 0:00:30]} Nd7 {[%emt 0:00:30]} 5. Bd3 {[%emt 0:00:30]} e5 {[%emt 0:00:30]} 6. Qb3 {[%emt 0:00:30]} Qc7 {[%emt 0:00:30]} 7. Nbd2 {[%emt 0:00:30]} Ngf6 {[%emt 0:00:30]} 8. h3 {[%emt 0:00:30]} Bh5 {[%emt 0:00:30]} 9. O-O {[%emt 0:00:30]} Be7 {[%emt 0:00:30]} 10. Re1 {[%emt 0:00:30]} O-O {[%emt 0:00:30]} 11. g4 {[%emt 0:00:30]} Bg6 {[%emt 0:00:30]} 12. Qc2 {[%emt 0:00:30]} Rfe8 {[%emt 0:00:30]} 13. Nf1 {[%emt 0:00:30]} Nf8 {[%emt 0:00:30]} 14. Ng3 {[%emt 0:00:30]} Ne6 {[%emt 0:00:30]} 15. Nf5 {[%emt 0:00:30]} 1/2-1/2

[Event "Vienna Championship-C 2022"]
[Site "Vienna"]
[Date "2022.09.21"]
[Round "5.6"]
[White "Johnson, Roland E S"]
[Black "Giefing, Josef"]
[Result "0-1"]
[ECO "C01"]
[WhiteElo "1691"]
[BlackElo "1771"]
[Annotator "NA COMBH"]
[PlyCount "88"]
[EventDate "2022.09.17"]
[EventType "swiss"]
[EventCountry "AUT"]
[SourceTitle "playchess.com"]
[Source "ChessBase"]
[SourceQuality "1"]
[TimeControl "5400+30"]

1. e4 {[%emt 0:00:03]} e6 {[%emt 0:00:10]} 2. d4 {[%emt 0:00:07]} d5 {[%emt 0:00:07]} 3. exd5 {[%emt 0:00:13]} exd5 {[%emt 0:00:01]} 4. Nf3 {[%emt 0:00:20]} Bd6 {[%emt 0:01:39]} 5. Be2 {[%emt 0:00:37]} Ne7 {[%emt 0:01:07]} 6. O-O {[%emt 0:01:02]} O-O {[%emt 0:01:04]} 7. Bg5 {[%emt 0:01:29]} f6 {[%emt 0:00:32]} 8. Bh4 {[%emt 0:02:07]} Nf5 {[%emt 0:01:00]} 9. Bg3 {[%emt 0:00:44]} Nxg3 {[%emt 0:02:14]} 10. fxg3 {[%emt 0:00:13]} c5 {[%emt 0:00:20]} 11. c3 {[%emt 0:00:30]} Nc6 {[%emt 0:00:44]} 12. Nbd2 {[%emt 0:02:42]} Qb6 {[%emt 0:00:34]} 13. Qb3 {[%emt 0:01:29]} c4 {[%emt 0:00:24]} 14. Qxb6 {[%emt 0:00:11]} axb6 {[%emt 0:00:30]} 15. Nh4 {[%emt 0:04:19]} Ne7 {[%emt 0:05:30]} 16. Bd1 {[%emt 0:03:18]} g5 {[%emt 0:00:55]} 17. Nhf3 {[%emt 0:00:14]} Nf5 {[%emt 0:00:21]} 18. Re1 {[%emt 0:00:52]} Bd7 {[%emt 0:00:24]} 19. Bc2 {[%emt 0:02:21]} Rfe8 {[%emt 0:00:23]} 20. Rxe8+ {[%emt 0:00:38]} Rxe8 {[%emt 0:00:17]} 21. Re1 {[%emt 0:00:07]} Rxe1+ {[%emt 0:06:02]} 22. Nxe1 {[%emt 0:00:07]} g4 {[%emt 1:17:12]} 23. Kf2 {[%emt 1:18:17]} b5 {[%emt 0:00:00]} 24. Bd1 {[%emt 0:00:00]} h5 {[%emt 0:00:00]} 25. Nc2 {[%emt 0:00:00]} Kg7 {[%emt 0:00:00]} 26. Ne3 {[%emt 0:00:00]} Ne7 {[%emt 0:00:00]} 27. h3 {[%emt 0:00:00]} f5 {[%emt 0:00:00]} 28. hxg4 {[%emt 0:00:00]} hxg4 {[%emt 0:00:00]} 29. Bc2 {[%emt 0:00:00]} Kf6 {[%emt 0:00:00]} 30. b3 {[%emt 0:00:00]} Kg5 {[%emt 0:00:00]} 31. b4 {[%emt 0:00:00]} f4 {[%emt 0:00:00]} 32. gxf4+ {[%emt 0:00:00]} Bxf4 {[%emt 0:00:00]} 33. g3 {[%emt 0:00:00]} Bxe3+ {[%emt 0:00:00]} 34. Kxe3 {[%emt 0:00:00]} Bf5 {[%emt 0:00:00]} 35. Bd1 {[%emt 0:00:00]} Bd3 {[%emt 0:00:00]} 36. a4 {[%emt 0:00:00]} Nf5+ {[%emt 0:00:00]} 37. Kf2 {[%emt 0:00:00]} Nd6 {[%emt 0:00:00]} 38. a5 {[%emt 0:00:00]} Kf5 {[%emt 0:00:00]} 39. Nf1 {[%emt 0:00:00]} Ne4+ {[%emt 0:00:00]} 40. Kg1 {[%emt 0:00:00]} Bxf1 {[%emt 0:00:00]} 41. Kxf1 {[%emt 0:00:00]} Nxc3 {[%emt 0:00:00]} 42. Bc2+ {[%emt 0:00:00]} Kg5 {[%emt 0:10:00]} 43. Kf2 {[%emt 0:10:00]} Na2 {[%emt 0:00:00]} 44. Ke3 {[%emt 0:00:00]} Nxb4 {[%emt 0:00:00]} 0-1

[Event "Vienna Championship-C 2022"]
[Site "Vienna"]
[Date "2022.09.21"]
[Round "5.7"]
[White "Brunner, Felix"]
[Black "Unger, Alexander"]
[Result "0-1"]
[ECO "B90"]
[WhiteElo "1541"]
[BlackElo "1456"]
[Annotator "NA RC COMBH"]
[PlyCount "84"]
[EventDate "2022.09.17"]
[EventType "swiss"]
[EventCountry "AUT"]
[SourceTitle "playchess.com"]
[Source "ChessBase"]
[SourceQuality "1"]
[TimeControl "5400+30"]

1. e4 {[%emt 0:00:02]} c5 {[%emt 0:00:05]} 2. Nf3 {[%emt 0:00:03]} d6 {[%emt 0:00:08]} 3. d4 {[%emt 0:00:06]} cxd4 {[%emt 0:00:05]} 4. Nxd4 {[%emt 0:00:04]} Nf6 {[%emt 0:00:08]} 5. Nc3 {[%emt 0:00:03]} a6 {[%emt 0:00:09]} 6. Rg1 {[%emt 0:00:10]} h5 {[%emt 0:02:30]} 7. Be3 {[%emt 0:00:41]} e6 {[%emt 0:03:25]} 8. h3 {[%emt 0:00:15]} d5 {[%emt 0:15:37]} 9. exd5 {[%emt 0:04:47]} Nxd5 {[%emt 0:00:17]} 10. Nxd5 {[%emt 0:00:06]} Qxd5 {[%emt 0:00:11]} 11. Qd2 {[%emt 0:02:25]} Bd7 {[%emt 0:06:56]} 12. g4 {[%emt 0:05:04]} Bc5 {[%emt 0:11:22]} 13. Bg2 {[%emt 0:04:43]} Qd6 {[%emt 0:01:35]} 14. O-O-O {[%emt 0:06:44]} Nc6 {[%emt 0:05:49]} 15. Kb1 {[%emt 0:00:33]} Nxd4 {[%emt 0:01:00]} 16. Bxd4 {[%emt 0:01:30]} Bxd4 {[%emt 0:00:23]} 17. Qxd4 {[%emt 0:00:05]} Qxd4 {[%emt 0:00:08]} 18. Rxd4 {[%emt 0:00:04]} O-O-O {[%emt 0:00:15]} 19. Rgd1 {[%emt 0:02:25]} hxg4 {[%emt 0:03:33]} 20. hxg4 {[%emt 0:04:08]} Bc6 {[%emt 0:04:05]} 21. Rxd8+ {[%emt 0:03:33]} Rxd8 {[%emt 0:00:11]} 22. Rxd8+ {[%emt 0:00:16]} Kxd8 {[%emt 0:00:10]} 23. Bxc6 {[%emt 0:00:09]} bxc6 {[%emt 0:00:10]} 24. c4 {[%emt 0:00:52]} c5 {[%emt 0:08:27]} 25. Kc2 {[%emt 0:01:08]} Ke7 {[%emt 0:01:09]} 26. Kd3 {[%emt 0:01:50]} f5 {[%emt 0:06:45]} 27. gxf5 {[%emt 0:03:30]} exf5 {[%emt 0:00:09]} 28. f4 {[%emt 0:00:14]} a5 {[%emt 0:05:30]} 29. Ke3 {[%emt 0:02:27]} Kf6 {[%emt 0:01:41]} 30. b3 {[%emt 0:57:33]} g5 {[%emt 0:01:18]} 31. fxg5+ {[%emt 0:00:00]} Kxg5 {[%emt 0:00:20]} 32. a3 {[%emt 0:00:00]} Kf6 {[%emt 0:05:00]} 33. Kf4 {[%emt 0:00:00]} Ke6 {[%emt 0:00:11]} 34. Kf3 {[%emt 0:00:00]} Ke5 {[%emt 0:00:31]} 35. Ke3 {[%emt 0:00:00]} f4+ {[%emt 0:02:22]} 36. Kf3 {[%emt 0:00:00]} Kf5 {[%emt 0:00:17]} 37. Kf2 {[%emt 0:00:00]} Ke4 {[%emt 0:00:22]} 38. Ke2 {[%emt 0:00:00]} f3+ {[%emt 0:00:07]} 39. Kf2 {[%emt 0:00:00]} Kf4 {[%emt 0:00:09]} 40. b4 {[%emt 0:00:00]} axb4 {[%emt 0:00:12]} 41. axb4 {[%emt 0:00:00]} cxb4 {[%emt 0:00:13]} 42. c5 {[%emt 0:00:00]} b3 {[%emt 0:00:05]} 0-1

[Event "Vienna Championship-C 2022"]
[Site "Vienna"]
[Date "2022.09.21"]
[Round "5.8"]
[White "Eichhorn, Elisabeth"]
[Black "Meixner, Peter"]
[Result "0-1"]
[ECO "D02"]
[WhiteElo "1306"]
[BlackElo "1669"]
[Annotator "NA RC COMBH"]
[PlyCount "78"]
[EventDate "2022.09.17"]
[EventType "swiss"]
[EventCountry "AUT"]
[SourceTitle "playchess.com"]
[Source "ChessBase"]
[SourceQuality "1"]
[TimeControl "5400+30"]

1. d4 {[%emt 0:00:03]} d5 {[%emt 0:00:15]} 2. Nf3 {[%emt 0:00:09]} Nf6 {[%emt 0:00:45]} 3. Bf4 {[%emt 0:00:17]} e6 {[%emt 0:01:21]} 4. e3 {[%emt 0:00:20]} c5 {[%emt 0:03:31]} 5. c3 {[%emt 0:00:38]} Be7 {[%emt 0:02:36]} 6. Bd3 {[%emt 0:00:36]} O-O {[%emt 0:03:52]} 7. Nbd2 {[%emt 0:00:47]} Nc6 {[%emt 0:03:05]} 8. Qe2 {[%emt 0:02:21]} b6 {[%emt 0:06:29]} 9. Ne5 {[%emt 0:02:49]} Bb7 {[%emt 0:01:41]} 10. h4 {[%emt 0:06:05]} h6 {[%emt 0:18:51]} 11. h5 {[%emt 0:06:45]} Nxe5 {[%emt 0:06:21]} 12. Bxe5 {[%emt 0:07:10]} Nd7 {[%emt 0:02:15]} 13. Bh2 {[%emt 0:00:52]} Re8 {[%emt 0:01:21]} 14. O-O-O {[%emt 0:00:40]} Bf6 {[%emt 0:01:05]} 15. f4 {[%emt 0:03:53]} Rc8 {[%emt 0:01:57]} 16. Kb1 {[%emt 0:00:16]} c4 {[%emt 0:01:14]} 17. Bc2 {[%emt 0:00:35]} b5 {[%emt 0:01:16]} 18. Kc1 {[%emt 0:06:00]} a5 {[%emt 0:00:24]} 19. Rdg1 {[%emt 0:00:23]} b4 {[%emt 0:01:13]} 20. Nb1 {[%emt 0:00:31]} bxc3 {[%emt 0:01:39]} 21. Nxc3 {[%emt 0:00:56]} Be7 {[%emt 0:04:09]} 22. Qf3 {[%emt 0:09:38]} Bb4 {[%emt 0:04:54]} 23. g4 {[%emt 0:01:18]} Bxc3 {[%emt 0:02:20]} 24. bxc3 {[%emt 0:00:36]} Nf6 {[%emt 0:06:21]} 25. g5 {[%emt 0:01:37]} hxg5 {[%emt 0:00:24]} 26. Rxg5 {[%emt 0:00:48]} Ne4 {[%emt 0:00:48]} 27. Rg2 {[%emt 0:02:37]} Re7 {[%emt 0:10:48]} 28. Bxe4 {[%emt 0:01:54]} dxe4 {[%emt 0:00:08]} 29. Qg4 {[%emt 0:02:19]} f5 {[%emt 0:00:25]} 30. Qg5 {[%emt 0:00:56]} Rf7 {[%emt 0:00:32]} 31. Qg3 {[%emt 0:01:55]} Qe7 {[%emt 0:00:30]} 32. Rhg1 {[%emt 0:01:12]} Rc7 {[%emt 0:01:19]} 33. Qh3 {[%emt 0:01:31]} Qa3+ {[%emt 0:02:50]} 34. Rb2 {[%emt 0:02:30]} Qxc3+ {[%emt 0:00:27]} 35. Rc2 {[%emt 0:00:40]} Qa3+ {[%emt 0:00:28]} 36. Kd1 {[%emt 0:10:47]} Bc6 {[%emt 0:03:17]} 37. Ke1 {[%emt 0:01:37]} Ba4 {[%emt 0:01:26]} 38. Re2 {[%emt 0:01:50]} c3 {[%emt 0:00:58]} 39. Kf2 {[%emt 0:15:22]} c2 {[%emt 0:00:46]} 0-1

[Event "Vienna Championship-C 2022"]
[Site "Vienna"]
[Date "2022.09.22"]
[Round "6.1"]
[White "Brueggeboes, Anton"]
[Black "Geyer, Guenter"]
[Result "1-0"]
[ECO "C53"]
[WhiteElo "1506"]
[BlackElo "1855"]
[Annotator "NA RC COMBH"]
[PlyCount "25"]
[EventDate "2022.09.17"]
[EventType "swiss"]
[EventCountry "AUT"]
[SourceTitle "playchess.com"]
[Source "ChessBase"]
[SourceQuality "1"]
[TimeControl "5400+30"]

1. e4 {[%emt 0:00:03]} Nc6 {[%emt 0:00:04]} 2. Nf3 {[%emt 0:00:26]} e5 {[%emt 0:00:14]} 3. Bc4 {[%emt 0:00:11]} Bc5 {[%emt 0:00:22]} 4. c3 {[%emt 0:00:08]} h6 {[%emt 0:06:24]} 5. O-O {[%emt 0:01:43]} d6 {[%emt 0:00:48]} 6. d4 {[%emt 0:00:48]} exd4 {[%emt 0:04:02]} 7. cxd4 {[%emt 0:00:08]} Bb6 {[%emt 0:00:32]} 8. h3 {[%emt 0:03:57]} f6 {[%emt 0:12:43]} 9. Nh4 {[%emt 0:02:11]} Nge7 {[%emt 0:02:49]} 10. Qh5+ {[%emt 0:01:23]} Kd7 {[%emt 0:01:10]} 11. Qg4+ {[%emt 0:01:06]} Ke8 {[%emt 0:00:20]} 12. Qxg7 {[%emt 0:00:27]} Rf8 {[%emt 0:01:35]} 13. Bxh6 {[%emt 0:00:21]} 1-0

[Event "Vienna Championship-C 2022"]
[Site "Vienna"]
[Date "2022.09.22"]
[Round "6.3"]
[White "Gerold, Arnold"]
[Black "Meixner, Peter"]
[Result "1/2-1/2"]
[ECO "C56"]
[WhiteElo "1708"]
[BlackElo "1669"]
[Annotator "NA RC COMBH"]
[PlyCount "44"]
[EventDate "2022.09.17"]
[EventType "swiss"]
[EventCountry "AUT"]
[SourceTitle "playchess.com"]
[Source "ChessBase"]
[SourceQuality "1"]
[TimeControl "5400+30"]

1. e4 {[%emt 1:31:00]} e5 {[%emt 1:31:00]} 2. Nf3 {[%emt 0:00:30]} Nf6 {[%emt 0:00:30]} 3. Bc4 {[%emt 0:00:30]} Nc6 {[%emt 0:00:30]} 4. d4 {[%emt 0:00:30]} exd4 {[%emt 0:00:30]} 5. O-O {[%emt 0:00:30]} Nxe4 {[%emt 0:00:30]} 6. Re1 {[%emt 0:00:30]} d5 {[%emt 0:00:30]} 7. Bxd5 {[%emt 0:00:30]} Qxd5 {[%emt 0:00:30]} 8. Nc3 {[%emt 0:00:30]} Qa5 {[%emt 0:00:30]} 9. Nxe4 {[%emt 0:00:30]} Be6 {[%emt 0:00:30]} 10. Bg5 {[%emt 0:00:30]} h6 {[%emt 0:00:30]} 11. Bh4 {[%emt 0:00:30]} Be7 {[%emt 0:00:30]} 12. Bxe7 {[%emt 0:00:30]} Nxe7 {[%emt 0:00:30]} 13. Qxd4 {[%emt 0:00:30]} O-O {[%emt 0:00:30]} 14. Qc5 {[%emt 0:00:30]} Nc6 {[%emt 0:00:30]} 15. Qxa5 {[%emt 0:00:30]} Nxa5 {[%emt 0:00:30]} 16. b3 {[%emt 0:00:30]} Rad8 {[%emt 0:00:30]} 17. Nc5 {[%emt 0:00:30]} Bd5 {[%emt 0:00:30]} 18. Ne5 {[%emt 0:00:30]} b6 {[%emt 0:00:30]} 19. Na6 {[%emt 0:00:30]} c5 {[%emt 0:00:30]} 20. Nc7 {[%emt 0:00:30]} Bb7 {[%emt 0:00:30]} 21. Rad1 {[%emt 0:00:30]} Rxd1 {[%emt 0:00:30]} 22. Rxd1 {[%emt 0:00:30]} a6 {[%emt 0:00:30]} 1/2-1/2

[Event "Vienna Championship-C 2022"]
[Site "Vienna"]
[Date "2022.09.22"]
[Round "6.6"]
[White "Giefing, Josef"]
[Black "Ganahl, Herbert"]
[Result "1/2-1/2"]
[ECO "A48"]
[WhiteElo "1771"]
[BlackElo "1488"]
[Annotator "NA RC COMBH"]
[PlyCount "36"]
[EventDate "2022.09.17"]
[EventType "swiss"]
[EventCountry "AUT"]
[SourceTitle "playchess.com"]
[Source "ChessBase"]
[SourceQuality "1"]
[TimeControl "5400+30"]

1. d4 {[%emt 0:00:04]} d6 {[%emt 0:00:09]} 2. Bf4 {[%emt 0:00:23]} g6 {[%emt 0:00:52]} 3. e3 {[%emt 0:00:22]} Bg7 {[%emt 0:00:25]} 4. Nf3 {[%emt 0:00:26]} Nf6 {[%emt 0:00:16]} 5. h3 {[%emt 0:01:07]} Bd7 {[%emt 0:01:41]} 6. c4 {[%emt 0:02:25]} c5 {[%emt 0:03:44]} 7. Nc3 {[%emt 0:00:34]} cxd4 {[%emt 0:00:41]} 8. exd4 {[%emt 0:00:13]} O-O {[%emt 0:00:47]} 9. Be2 {[%emt 0:00:49]} Ne8 {[%emt 0:04:06]} 10. O-O {[%emt 0:00:19]} Bc8 {[%emt 0:03:38]} 11. Qb3 {[%emt 0:01:43]} e6 {[%emt 0:07:33]} 12. Rad1 {[%emt 0:01:17]} Nd7 {[%emt 0:02:26]} 13. Qa3 {[%emt 0:00:33]} Ndf6 {[%emt 0:08:46]} 14. Rfe1 {[%emt 0:08:31]} d5 {[%emt 0:02:13]} 15. c5 {[%emt 0:01:05]} Bd7 {[%emt 0:01:38]} 16. Ne5 {[%emt 0:00:12]} a6 {[%emt 0:01:07]} 17. Na4 {[%emt 0:00:43]} Bxa4 {[%emt 0:01:11]} 18. Qxa4 {[%emt 1:18:44]} Rc8 {[%emt 0:04:38]} 1/2-1/2

[Event "Vienna Championship-C 2022"]
[Site "Vienna"]
[Date "2022.09.22"]
[Round "6.7"]
[White "Roehrbacher, Franz"]
[Black "Nicolussi, Hieronymus"]
[Result "0-1"]
[ECO "C01"]
[WhiteElo "1673"]
[BlackElo "1239"]
[Annotator "NA RC COMBH"]
[PlyCount "62"]
[EventDate "2022.09.17"]
[EventType "swiss"]
[EventCountry "AUT"]
[SourceTitle "playchess.com"]
[Source "ChessBase"]
[SourceQuality "1"]
[TimeControl "5400+30"]

1. e4 {[%emt 0:00:09]} e6 {[%emt 0:00:02]} 2. d4 {[%emt 0:00:53]} d5 {[%emt 0:00:05]} 3. exd5 {[%emt 0:00:09]} exd5 {[%emt 0:00:06]} 4. Nc3 {[%emt 0:01:21]} Nf6 {[%emt 0:00:13]} 5. Be2 {[%emt 0:01:00]} Bd6 {[%emt 0:00:09]} 6. Nf3 {[%emt 0:01:23]} Bf5 {[%emt 0:00:13]} 7. O-O {[%emt 0:00:42]} O-O {[%emt 0:00:05]} 8. Re1 {[%emt 0:03:25]} c6 {[%emt 0:00:22]} 9. h3 {[%emt 0:00:34]} Nbd7 {[%emt 0:01:38]} 10. Bf1 {[%emt 0:00:32]} Qc7 {[%emt 0:03:11]} 11. Bg5 {[%emt 0:01:24]} Rfe8 {[%emt 0:02:07]} 12. Nh4 {[%emt 0:03:18]} Rxe1 {[%emt 0:02:30]} 13. Qxe1 {[%emt 0:01:55]} Bxc2 {[%emt 0:01:26]} 14. Qd2 {[%emt 0:00:28]} Bg6 {[%emt 0:01:56]} 15. Nxg6 {[%emt 0:00:41]} fxg6 {[%emt 0:03:25]} 16. Re1 {[%emt 0:01:22]} h6 {[%emt 0:01:34]} 17. Bxh6 {[%emt 0:01:25]} gxh6 {[%emt 0:00:16]} 18. Qxh6 {[%emt 0:00:11]} Kf7 {[%emt 0:00:06]} 19. Bd3 {[%emt 0:00:56]} Rg8 {[%emt 0:00:45]} 20. Ne2 {[%emt 0:06:36]} Nh5 {[%emt 0:05:49]} 21. Bxg6+ {[%emt 0:01:36]} Rxg6 {[%emt 0:00:21]} 22. Qxh5 {[%emt 0:00:34]} Nf6 {[%emt 0:00:14]} 23. Qf5 {[%emt 0:02:58]} Qd7 {[%emt 0:01:13]} 24. Qf3 {[%emt 0:00:52]} Qe6 {[%emt 0:01:11]} 25. Kf1 {[%emt 0:00:59]} Qe4 {[%emt 0:00:47]} 26. Ng1 {[%emt 0:02:59]} Qxd4 {[%emt 0:01:37]} 27. Qf5 {[%emt 0:00:20]} Qc4+ {[%emt 0:01:09]} 28. Re2 {[%emt 0:01:14]} d4 {[%emt 0:00:40]} 29. Nf3 {[%emt 0:01:07]} d3 {[%emt 1:11:50]} 30. Ng5+ {[%emt 1:04:27]} Kg7 {[%emt 0:00:00]} 31. Ne6+ {[%emt 0:00:00]} Kh6 {[%emt 0:00:00]} 0-1

[Event "Vienna Championship-C 2022"]
[Site "Vienna"]
[Date "2022.09.22"]
[Round "6.8"]
[White "Zikic, Goran"]
[Black "Bendl, Felix"]
[Result "0-1"]
[ECO "A03"]
[WhiteElo "1340"]
[BlackElo "1645"]
[Annotator "NA COMBH"]
[PlyCount "88"]
[EventDate "2022.09.17"]
[EventType "swiss"]
[EventCountry "AUT"]
[SourceTitle "playchess.com"]
[Source "ChessBase"]
[SourceQuality "1"]
[TimeControl "5400+30"]

1. f4 {[%emt 0:00:30]} d5 {[%emt 0:00:30]} 2. Nf3 {[%emt 0:00:30]} Nf6 {[%emt 0:00:30]} 3. e3 {[%emt 0:00:30]} Nc6 {[%emt 0:00:30]} 4. b3 {[%emt 0:00:30]} g6 {[%emt 0:00:30]} 5. Bb2 {[%emt 0:00:30]} Bg7 {[%emt 0:00:30]} 6. Be2 {[%emt 0:00:30]} Bf5 {[%emt 0:00:30]} 7. a3 {[%emt 0:00:30]} a5 {[%emt 0:00:30]} 8. O-O {[%emt 0:00:30]} O-O {[%emt 0:00:30]} 9. Nh4 {[%emt 0:00:30]} Qd7 {[%emt 0:00:30]} 10. h3 {[%emt 0:00:30]} h5 {[%emt 0:00:30]} 11. Kh1 {[%emt 0:00:30]} Bxh3 {[%emt 0:00:30]} 12. f5 {[%emt 0:00:30]} Bxf5 {[%emt 0:00:30]} 13. Nxf5 {[%emt 0:00:30]} gxf5 {[%emt 0:00:30]} 14. Bxh5 {[%emt 0:00:30]} Nxh5 {[%emt 0:00:30]} 15. Qxh5 {[%emt 0:00:30]} Bxb2 {[%emt 0:00:30]} 16. Nc3 {[%emt 0:00:30]} Bxc3 {[%emt 0:00:30]} 17. Rxf5 {[%emt 0:00:30]} Qxf5 {[%emt 0:00:30]} 18. Qxf5 {[%emt 0:00:30]} Bxa1 {[%emt 0:00:30]} 19. c3 {[%emt 0:00:30]} Rfd8 {[%emt 0:00:30]} 20. Qb1 {[%emt 0:00:30]} Bxc3 {[%emt 0:00:30]} 21. dxc3 {[%emt 0:00:30]} e6 {[%emt 0:00:30]} 22. Qe1 {[%emt 0:00:30]} Kf8 {[%emt 0:00:30]} 23. Qg3 {[%emt 0:00:30]} Rac8 {[%emt 0:00:30]} 24. Qf4 {[%emt 0:00:30]} Ke7 {[%emt 0:00:30]} 25. b4 {[%emt 0:00:30]} axb4 {[%emt 0:00:30]} 26. cxb4 {[%emt 0:00:30]} Rh8+ {[%emt 0:00:30]} 27. Kg1 {[%emt 0:00:30]} b5 {[%emt 0:00:30]} 28. Qg5+ {[%emt 0:00:30]} Kd7 {[%emt 0:00:30]} 29. Qf6 {[%emt 0:00:30]} Rcf8 {[%emt 0:00:30]} 30. Qf1 {[%emt 0:00:30]} Na7 {[%emt 0:00:30]} 31. Qf2 {[%emt 0:00:30]} c6 {[%emt 0:00:30]} 32. e4 {[%emt 0:00:30]} Nc8 {[%emt 0:00:30]} 33. exd5 {[%emt 0:00:30]} exd5 {[%emt 0:00:30]} 34. Qf5+ {[%emt 0:00:30]} Kc7 {[%emt 0:00:30]} 35. Qe5+ {[%emt 0:00:30]} Kb7 {[%emt 0:00:30]} 36. Qf6 {[%emt 0:00:30]} Rhg8 {[%emt 0:00:30]} 37. Qf5 {[%emt 0:00:30]} Rg6 {[%emt 0:00:30]} 38. Qf1 {[%emt 0:00:30]} Rfg8 {[%emt 0:00:30]} 39. Qxf7+ {[%emt 0:00:30]} Ka6 {[%emt 0:00:30]} 40. Qf1 {[%emt 0:00:30]} Rxg2+ {[%emt 0:00:30]} 41. Kh1 {[%emt 0:00:30]} Rg1+ {[%emt 0:00:30]} 42. Qxg1 {[%emt 0:00:30]} Rxg1+ {[%emt 0:00:30]} 43. Kxg1 {[%emt 0:00:30]} Nd6 {[%emt 0:00:30]} 44. Kf2 {[%emt 0:00:30]} Nc4 {[%emt 0:00:30]} 0-1